Cogmind - Beta 13 @@@ ROGUE MODE // 2024.04.12 @ 21:22:11 Player: chexo4 Result: Destroyed by G-47 Trooper with Particle Gun Performance ------------- Evolutions (0) 0 Regions Visited (2) 400 Robots Destroyed (20) 100 Value Destroyed (168) 168 Prototype IDs (0) 0 Alien Tech Used (0) 0 Bonus (50) 50 TOTAL SCORE: 718 Bonus ------- Follower Combat Kills 50 Cogmind --------- Core Integrity 0/250 Matter 300/300 Energy 124/125 System Corruption 0% Temperature Cool (36) Movement Rolling (80) Location -10/Mines Parts ------- > --- POWER (1) -------- Light Ion Engine > --- PROPULSION (2) --- Wheel > --- UTILITY (2) ------ Small Storage Unit Seismic Detector > --- WEAPON (2) ------- (None) > --- INVENTORY (8) ---- Experimental Sensor Array Terrain Scan Processor Seismic Detector Mining Laser Peak State ------------ > --- POWER ------------ Ion Engine > --- PROPULSION ------- Compact Wheel Compact Wheel > --- UTILITY ---------- Small Storage Unit Seismic Detector > --- WEAPON ----------- Small Laser Small Laser > --- INVENTORY -------- Light Ion Engine Light Ion Engine Compact Wheel EM Pulse Gun Mining Laser [Rating: 7] Favorites ----------- Power Light Ion Engine Engine Light Ion Engine Propulsion Compact Wheel Wheel Compact Wheel Utility Small Storage Unit Device Seismic Detector Storage Small Storage Unit Weapon Small Laser Energy Gun Small Laser Ballistic Gun Light Assault Rifle Build | -11 -10 -10 ------- Run | Yrd Mat Min Slots Evolved . | . . . Power . | . . . Propulsion . | . . . Utility . | . . . Weapon . | . . . Parts Attached 17 | 7 4 6 Power 4 | 1 1 2 Engine 4 | 1 1 2 Core . | . . . Reactor . | . . . Propulsion 4 | 2 1 1 Treads . | . . . Leg . | . . . Wheel 4 | 2 1 1 Hover . | . . . Flight . | . . . Utility 2 | 2 . . Device 1 | 1 . . Storage 1 | 1 . . Processor . | . . . Hackware . | . . . Protection . | . . . Artifact . | . . . Weapon 7 | 2 2 3 Energy Gun 5 | 2 . 3 Energy Cannon . | . . . Ballistic Gun 2 | . 2 . Ballistic Cannon . | . . . Launcher . | . . . Special Weapon . | . . . Impact Weapon . | . . . Slashing Weapon . | . . . Piercing Weapon . | . . . Special Melee Weapon . | . . . Unidentified Prototypes . | . . . Parts Lost 10 | . 2 8 Power 3 | . 1 2 Propulsion 3 | . 1 2 Utility . | . . . Weapon 4 | . . 4 Highest Loss Streak 3 | . 1 3 To Critical Strikes . | . . . Average Slot Usage (%) 94 | . 98 91 Engine 12 | . 13 12 Wheel 26 | . 27 26 Device 14 | . 14 14 Storage 14 | . 14 14 Energy Gun 15 | . 17 13 Ballistic Gun 9 | . 10 9 Naked Turns . | . . . Heaviest Build 13 | 13 13 12 Greatest Support 32 | 32 32 32 Greatest Overweight (x) . | . . . Average Overweight (x) . | . . . Largest Inventory Capacity 8 | 8 8 8 Average Capacity 7 | 6 8 8 Most Carried 8 | 6 8 8 Average Carried 5 | 4 6 5 Final Capacity 8 | 8 8 8 Final Carried 8 | 6 8 4 Class Distribution -------------------- 55% | Mutant 44% | Scavenger-Mutant Dominant Class ---------------- Mutant | -10/Materials Scavenger-Mutant | -10/Mines Resources | -11 -10 -10 ----------- Run | Yrd Mat Min Matter Collected 386 | 270 54 62 Remotely . | . . . Salvage Created 449 | 200 199 50 Parts 44 | 16 25 3 Haulers Intercepted 1 | . 1 . Recyclers Shooed 2 | . 2 . Parts Field Recycled . | . . . Retrieved Matter . | . . . Parts Self-Destructed . | . . . Prevented . | . . . Kills | -11 -10 -10 ------- Run | Yrd Mat Min Combat Hostiles Destroyed 12 | . 9 3 Guns 12 | . 9 3 Classes Destroyed 5 | 2 3 . Builder 1 | . 1 . Tunneler 5 | 5 . . Hauler 1 | . 1 . Recycler 1 | 1 . . Swarmer 12 | . 9 3 Best Kill Streak 5 | 5 5 1 Combat Bots Only 3 | . 3 1 Max Kills in Single Turn 1 | 1 1 1 Gunslinging . | . . . Exploded . | . . . Melee . | . . . Uniques/NPCs Destroyed . | . . . Combat | -11 -10 -10 -------- Run | Yrd Mat Min Hostile Shots Fired 135 | . 69 66 Missed 38 | . 15 23 Damage Taken 837 | . 415 422 Core 251 | . 116 135 Absorbed by Shields . | . . . Core Remaining (%) 100 | 100 . . Volleys Fired 70 | 16 32 22 Largest 2 | 2 2 2 Hottest 80 | 80 80 60 Shots Fired 130 | 32 64 34 Gun 130 | 32 64 34 Cannon . | . . . Launcher . | . . . Special . | . . . Kinetic 38 | . 20 18 Thermal 81 | 32 44 5 Explosive . | . . . Electromagnetic 11 | . . 11 Robot Hit Streak 9 | 9 5 6 Robot Miss Streak 6 | 2 4 6 Penetration Max . | . . . Secondary Targets 1 | . 1 . Max Gunslinging Chain 1 | . 1 . Shots Hit Robots 68 | 22 31 15 Core Hits 26 | 7 14 5 Critical Kills . | . . . Critical Parts Destroyed . | . . . Critical Strikes . | . . . Melee Attacks . | . . . Impact . | . . . Slashing . | . . . Piercing . | . . . Sneak Attacks . | . . . Combat Hostiles . | . . . Follow-up Attacks . | . . . Damage Inflicted 702 | 246 314 142 Guns 702 | 246 314 142 Cannons . | . . . Explosions . | . . . Melee . | . . . Ramming . | . . . Kinetic 145 | . 82 63 Thermal 523 | 246 232 45 Explosive . | . . . Electromagnetic 34 | . . 34 Impact . | . . . Slashing . | . . . Piercing . | . . . Highest Corruption . | . . . Average Corruption . | . . . Corruption Purged . | . . . Corruption Blocked . | . . . Overload Shots . | . . . Overflow Damage . | . . . Projectiles . | . . . Explosions . | . . . Melee . | . . . Knockbacks . | . . . Impact . | . . . Kinetic . | . . . Secondary . | . . . Self-Inflicted Damage . | . . . Shots . | . . . Rammed . | . . . Targets Rammed . | . . . Kicked . | . . . Crushed . | . . . Highest Temperature 126 | 74 126 40 Average Temperature 31 | 28 38 18 Received Heat Transfer 123 | . . 123 Siege Activations . | . . . Robots Corrupted . | . . . Combat Hostiles . | . . . Parts Fried . | . . . Impact Corruptions . | . . . Robots Melted . | . . . Combat Hostiles . | . . . Parts Melted . | . . . Heat Transferred 1175 | 550 525 100 Parts Sabotaged . | . . . Parts Stolen . | . . . Parts Stripped . | . . . Power Chain Reactions . | . . . Alert | -11 -10 -10 ------- Run | Yrd Mat Min Peak Influence 244 | 30 244 194 Initial 94 | . 19 94 Average 112 | 15 129 134 Maximum Alert Level 1 | . 1 . Low Security (%) 93 | 100 80 100 Level 1 6 | . 19 . Level 2 . | . . . Level 3 . | . . . Level 4 . | . . . Level 5 . | . . . High Security . | . . . Max Security . | . . . Squads Dispatched . | . . . Investigation . | . . . Extermination . | . . . Reinforcement . | . . . Assault . | . . . Garrison . | . . . Intercept . | . . . Searches Triggered . | . . . Construction Impeded . | . . . Haulers Reinforced . | . . . Active Scanning Responses . | . . . Cargo Convoy Interrupts . | . . . Stealth | -11 -10 -10 --------- Run | Yrd Mat Min Distress Signals . | . . . Communications Jammed . | . . . Distress Signals . | . . . Times Spotted 25 | . 11 14 Peak Tracking Total 4 | . 3 4 Tactical Retreats 4 | . . 4 Traps | -11 -10 -10 ------- Run | Yrd Mat Min Traps Triggered . | . . . Indirectly . | . . . Trap Hack Attempts . | . . . Triggered . | . . . Disarmed . | . . . Reprogrammed . | . . . Reused . | . . . Traps Extracted . | . . . Installed . | . . . Triggered . | . . . Machines | -11 -10 -10 ---------- Run | Yrd Mat Min Machines Disabled . | . . . Max in Single Turn . | . . . Machines Repaired . | . . . Machines Dismantled . | . . . Machines Sabotaged . | . . . Overloaded Fab Kills . | . . . Hacking | -11 -10 -10 --------- Run | Yrd Mat Min Machines Accessed 1 | . 1 . Terminals 1 | . 1 . Fabricators . | . . . Repair Stations . | . . . Recycling Units . | . . . Scanalyzers . | . . . Garrison Access . | . . . Total Hacks 2 | . 2 . Successful 2 | . 2 . Failed . | . . . Catastrophic . | . . . Database Lockouts . | . . . Manual 1 | . 1 . Terminals 2 | . 2 . Fabricators . | . . . Repair Stations . | . . . Recycling Units . | . . . Scanalyzers . | . . . Garrison Access . | . . . Terminal Hacks 2 | . 2 . Branch Access Points 1 | . 1 . Terminal Index 1 | . 1 . Fabricator Hacks . | . . . Repair Station Hacks . | . . . Recycling Unit Hacks . | . . . Scanalyzer . | . . . Garrison Access Hacks . | . . . Unauthorized Hacks . | . . . Terminals . | . . . Fabricators . | . . . Repair Stations . | . . . Recycling Units . | . . . Scanalyzers . | . . . Garrison Access . | . . . Data Cores Recovered . | . . . Used . | . . . Hacking Detections 1 | . 1 . Full Trace Events . | . . . Feedback Events . | . . . Feedback Blocked . | . . . Robot Schematics Acquired . | . . . Robots Built . | . . . Authchips . | . . . Time . | . . . Total Robot Build Rating . | . . . Part Schematics Acquired . | . . . Parts Built . | . . . Authchips . | . . . Time . | . . . Total Part Build Rating . | . . . Parts Repaired . | . . . Time . | . . . Parts Recycled . | . . . Recycled Matter . | . . . Retrieved Matter . | . . . Retrieved Components . | . . . Parts Scanalyzed . | . . . Part Schematics Acquired . | . . . Parts Damaged . | . . . Bothacking | -11 -10 -10 ------------ Run | Yrd Mat Min Used RIF Installer . | . . . Robots Hacked . | . . . Non-combat . | . . . Combat . | . . . Robot Hacks Applied . | . . . Relay Couplers Released . | . . . Fabnet Peak Effective % . | . . . Robots Rewired . | . . . Allies Hacked . | . . . Hacks Repelled . | . . . Allies | -11 -10 -10 -------- Run | Yrd Mat Min Total Allies 2 | . . 2 Largest Group 2 | . . 2 Highest-Rated Group 45 | . . 45 Highest-Rated Ally 31 | . . 31 Total Orders . | . . . Ally Attacks 16 | . . 16 Total Damage 231 | . . 231 Kills 2 | . . 2 Allies Corrupted . | . . . Allies Melted . | . . . Intel | -11 -10 -10 ------- Run | Yrd Mat Min Robot Analysis Total . | . . . Derelict Logs Recovered 1 | . . 1 Drone Launches . | . . . Drone Recoveries . | . . . Exploration | -11 -10 -10 ------------- Run | Yrd Mat Min Turns Passed 1125 | 197 391 537 Spaces Moved 823 | 133 216 474 Core 9 | 9 . . Treads . | . . . Legs . | . . . Wheels 814 | 124 216 474 Hover . | . . . Flight . | . . . Fastest Speed 50 | 50 100 80 Average Speed 93 | 96 100 90 Slowest Speed 100 | 100 100 100 Overloaded Moves . | . . . Propulsion Burnouts . | . . . Robots Hopped . | . . . Cave-ins Triggered . | . . . Exploration Rate (%) 34 | 4 29 70 Regions Visited 2 Branch Regions 1 Pre-discovered Areas . | . . . Known Exits Taken 1 | . 1 . Unknown Exits Taken 1 | 1 . . Scrap Searched 2 | . . 2 Spaces Dug . | . . . Terrain Destroyed . | . . . Melee . | . . . Projectile . | . . . AOE . | . . . Terrain Rammed . | . . . Walls Destroyed . | . . . Machines Disabled . | . . . Actions | -11 -10 -10 --------- Run | Yrd Mat Min Total 1051 | 169 330 552 Wait 122 | . 73 49 Move 821 | 132 215 474 Hop . | . . . Pick Up 19 | 13 5 1 Fast Attach 1 | 1 . . Attach 13 | 6 2 5 Detach . | . . . Swap 3 | . 2 1 Drop 2 | 1 1 . Fire 70 | 16 32 22 Melee . | . . . Ram . | . . . Kick . | . . . Crush . | . . . Escape Stasis . | . . . Rewire . | . . . Trap . | . . . Miscellaneous . | . . . Route ------- -11/Scrapyard -10/Materials (discovered 2 exits: *Mat / *Min) -10/Mines (discovered 1 exit: Mat) History --------- Turn | Location | Event 19 | -11/Scrapyard | Discovered new exit (range 15) 198 | -11/Scrapyard | Entered Materials 326 | -10/Materials | Build established: Mutant 550 | -10/Materials | Identified exit to Mines 565 | -10/Materials | Discovered new exit (range 7) 589 | -10/Materials | Entered Mines 591 | -10/Mines | Core integrity fell below 50% 738 | -10/Mines | Identified exit to Materials 787 | -10/Mines | Core integrity fell below 20% 996 | -10/Mines | Lost 3 parts (1p2w) 1016 | -10/Mines | Found a damaged Exp. Sensor Array with a note attached 1018 | -10/Mines | Found Prototype Device 1126 | -10/Mines | Destroyed by G-47 Trooper with Particle Gun Last Messages --------------- Acquired 10 matter. A damaged part is partially visible under some rubble. There's a note attached: "Everyone keeps telling us we should avoid high-traffic areas because that's where patrols are more likely to show up, but that doesn't do us much good if we can't spot those areas until they're on top of us... With this we can! Deliver it to Megawrench for repairs then we'll never be afraid of an ambush while sneaking around Materials again, ha." Acquired Prototype Device. K-01 Serf collects debris. A pair of derelicts emerge from the shadows: "We're, um, lost. You wouldn't happen to know the way out of here, would you?" G-34 Mercenary suffers critical hit (Burn). G-34 Mercenary destroyed. Com. Wheel destroyed. Sml. Laser destroyed. Map ----- +----------------------------------------------------+ | | | | | | | | | | | | | ??????????????????????????????????????? | | ??????????????????????????????????????? | | ??????????????????????????????????????? | | ??????????????????????????????????????? | | ??????????????????????????????????????? | | ??????????????????????????????????????? | | ??????????????????????????????????????? | | ??????????????????????????????????????? | | ??????????????????????????????????????? | | ??????????????????????????????????????? | | ??????????????????????????????????????? | | ??????????????????????????????????????? | | ??????????????????????????????????????? | | ??????????????????????????????????????? | | ??????????????????????????????????????? | | ???????????????????????####???????????? | | ??????????????????????## ##??????????? | | ??????????????????????# ##?????????? | | ??????????????????????# ##????????? | | ??????????????????????# @ ##???????? | | ??????????????????????# ##??????? | | ??????????????????????## = #####??? | | ???????????????????????#####g%[ ##?? | | ???????????????????????????##gg% #?? | | ???????????????????????????##%= #?? | | ??????????????????????###### ##?? | | ?????????????????????## ## ####??? | | ?????????????????????# ##?????? | | ?????????????????????# #####??????? | | ???????????????####### ##??????????? | | ???????????????# ##########??? | | ?????########### #### #??? | | ????## ! #??## #??? | | ????# %/ #???## ######## #??? | | ????# #######????####??????# #??? | | ????# ##????????#####??????# #??? | | ????## ##??????## ####??## #??? | | ?????### ##?????# #### ##?? | | ######### #?????# #?? | | #?????##!! #?? | | ##### ##??????# ## #?? | | ????# ####%##???????#%###### ##?? | | ????# #??# ########## #????#### ##??? | | ???## ##?#% #???????# ##???? | +----------------------------------------------------+ Best States ------------- Heat Dissipation 25 Energy Generation 10 Energy Capacity 250 Matter Stores 300 Matter Capacity 300 Sight Range 16 Terrain Scan Density 10 Evasion (%) 42 Item Schematics ----------------- None Robot Schematics ------------------ None Fabricated ------------ Nothing Alien Tech Used ----------------- None Achievements -------------- None Challenges ------------ None Game ------ Seed BladeGrenadeStripper Manual? 0 Play Time 00:10:03 Cumulative 21.7 hours Start 2024.04.12 @ 21:15:24 End 2024.04.12 @ 21:22:11 Sessions 1 Manual Loads 0 Difficulty Rogue Special Mode None Game No. 62 Rogue 62 Adventurer 0 Explorer 0 Win Type - Total 0 Types 0/0/0/0/0/0/0/0/0 Lore% 19 Gallery% 28 Achievement% 22 Wizard Run 0 Options --------- Layout 1 ASCII 0 Keyboard 0 Movement Arrows Keybinds 0 Fullscreen 2 Font 24/Smallcaps Map View 50x35 Zoom Use 0% Tactical HUD 0 Map Filters NONE Filters NONE Steam 1 RUN: 6515212b-f9db-4674-8441-a3a2148802a5